Workbook

Sheet contrats
A1: part dans l'emploi salarié
B3: ensemble de l'emploi salarié hors apprentis | C3: ensemble de l'emploi salarié | D3: intérim | E3: ensemble de l'emploi salarié hors apprentis | F3: ensemble de l'emploi salarié | H3: 15-29 ans hors apprentis | I3: 15-29 ans | J3: 15-24 ans hors apprentis | K3: 15-24 ans
A5: 1982 | B5: 5.483678883 | C5: 6.420180804 | D5: 0.5521572024 | E5: =B5-$D5 -> 4.93152168 | F5: =C5-$D5 -> 5.868023602 | G5: =F5-E5 -> 0.9365019217 | H5: 9.49470768 | I5: 12.64848348 | J5: 13.51277122 | K5: 18.18181818 | U5: =K5-O5 -> 18.18181818 | V5: =J5-P5 -> 13.51277122
A6: 1983 | B6: 5.171383562 | C6: 6.127437666 | D6: 0.4888913032 | E6: 4.682492259 | F6: 5.638546363 | G6: 0.956054104 | H6: 9.076062734 | I6: 12.36690208 | J6: 12.69974769 | K6: 17.57779647 | U6: 17.57779647 | V6: 12.69974769
A7: 1984 | B7: 4.906657856 | C7: 5.809791288 | D7: 0.4570736274 | E7: 4.449584228 | F7: 5.352717661 | G7: 0.9031334325 | H7: 8.837989159 | I7: 11.99481146 | J7: 12.5 | K7: 17.37288136 | U7: 17.37288136 | V7: 12.5
A8: 1985 | B8: 5.738286151 | C8: 6.681939672 | D8: 0.4909180167 | E8: 5.247368134 | F8: 6.191021655 | G8: 0.943653521 | H8: 10.62561181 | I8: 13.97593831 | J8: 16.27695111 | K8: 21.43941695 | U8: 21.43941695 | V8: 16.27695111
A9: 1986 | B9: 6.741512387 | C9: 7.637502024 | D9: 0.5505478491 | E9: 6.190964538 | F9: 7.086954175 | G9: 0.8959896367 | H9: 13.39444323 | I9: 16.63365356 | J9: 21.58469945 | K9: 26.56344869 | U9: 26.56344869 | V9: 21.58469945
A10: 1987 | B10: 7.516533147 | C10: 8.457443949 | D10: 0.5215334158 | E10: 6.994999731 | F10: 7.935910533 | G10: 0.9409108017 | H10: 15.47932044 | I10: 18.9778967 | J10: 26.13080685 | K10: 31.44865526 | U10: 31.44865526 | V10: 26.13080685
A11: 1988 | B11: 8.098422038 | C11: 9.125434608 | D11: 0.6953730944 | E11: 7.403048944 | F11: 8.430061514 | G11: 1.02701257 | H11: 17.00562011 | I11: 20.84721606 | J11: 27.69427566 | K11: 33.70642789 | U11: 33.70642789 | V11: 27.69427566
A12: 1989 | B12: 8.451808488 | C12: 9.512858039 | D12: 0.9721931842 | E12: 7.479615304 | F12: 8.540664855 | G12: 1.06104955 | H12: 18.28868624 | I12: 22.34202247 | J12: 28.55325914 | K12: 34.84896661 | U12: 34.84896661 | V12: 28.55325914
A13: 1990 | B13: 8.194495221 | C13: 9.134590275 | D13: 0.9348723038 | E13: 7.259622917 | F13: 8.199717971 | G13: 0.9400950541 | H13: 17.70745985 | I13: 21.68935695 | J13: 27.23347725 | K13: 33.04549983 | U13: 33.04549983 | V13: 27.23347725
A14: 1991 | B14: 7.6565762 | C14: 8.439457203 | D14: 0.8611691023 | E14: 6.795407098 | F14: 7.5782881 | G14: 0.7828810021 | H14: 16.32274276 | I14: 19.8330513 | J14: 24.25454545 | K14: 29.52727273 | U14: 29.52727273 | V14: 24.25454545
A15: 1992 | B15: 8.182102628 | C15: 8.938256154 | D15: 0.8500208594 | E15: 7.332081769 | F15: 8.088235294 | G15: 0.7561535252 | H15: 17.52282057 | I15: 20.91751061 | J15: 25.73166097 | K15: 30.90079818 | U15: 30.90079818 | V15: 25.73166097
A16: 1993 | B16: 8.689340523 | C16: 9.430734135 | D16: 0.6895479054 | E16: 7.999792617 | F16: 8.74118623 | G16: 0.7413936126 | H16: 17.83238596 | I16: 21.36789196 | J16: 26.95795548 | K16: 32.60511129 | U16: 32.60511129 | V16: 26.95795548
A17: 1994 | B17: 8.7908089 | C17: 9.575795384 | D17: 0.8629652734 | E17: 7.927843627 | F17: 8.71283011 | G17: 0.7849864837 | H17: 18.94979699 | I17: 22.76475448 | J17: 27.65862377 | K17: 34.04825737 | U17: 34.04825737 | V17: 27.65862377
A18: 1995 | B18: 10.06845116 | C18: 10.90621169 | D18: 1.134041684 | E18: 8.934409481 | F18: 9.772170004 | G18: 0.8377605231 | H18: 21.56713527 | I18: 25.65807772 | J18: 30.98969996 | K18: 37.84146888 | U18: 37.84146888 | V18: 30.98969996
A19: 1996 | B19: 10.26898574 | C19: 11.18920012 | D19: 1.071898069 | E19: 9.197087673 | F19: 10.11730205 | G19: 0.9202143796 | H19: 22.39741462 | I19: 27.18685291 | J19: 31.33086876 | K19: 39.41774492 | U19: 39.41774492 | V19: 31.33086876
A20: 1997 | B20: 10.76541711 | C20: 11.76708656 | D20: 1.279910963 | E20: 9.485506147 | F20: 10.4871756 | G20: 1.001669449 | H20: 23.66546045 | I20: 28.85222602 | J20: 32.85854617 | K20: 42.14145383 | U20: 42.14145383 | V20: 32.85854617
A21: 1998 | B21: 11.31690316 | C21: 12.40726911 | D21: 1.588249938 | E21: 9.728653224 | F21: 10.81901917 | G21: 1.090365945 | H21: 24.99985777 | I21: 30.56748961 | J21: 35.51673945 | K21: 45.56040757 | U21: 45.56040757 | V21: 35.51673945
A22: 1999 | B22: 11.35649784 | C22: 12.55398508 | D22: 1.717707106 | E22: 9.638790734 | F22: 10.83627797 | G22: 1.19748724 | H22: 25.42167706 | I22: 31.29760136 | J22: 36.98696282 | K22: 48.04442298 | U22: 48.04442298 | V22: 36.98696282
A23: 2000 | B23: 12.34550362 | C23: 13.4820287 | D23: 2.02680305 | E23: 10.31870057 | F23: 11.45522565 | G23: 1.136525075 | H23: 27.20839677 | I23: 32.95547503 | J23: 38.24701195 | K23: 48.38424081 | U23: 48.38424081 | V23: 38.24701195
A24: 2001 | B24: 11.83075067 | C24: 12.84216387 | D24: 2.213046302 | E24: 9.61770437 | F24: 10.62911757 | G24: 1.011413195 | H24: 26.41746041 | I24: 31.67964191 | J24: 37.59791123 | K24: 46.73629243 | U24: 46.73629243 | V24: 37.59791123
A25: 2002 | B25: 11.27212694 | C25: 12.34522608 | D25: 1.87563056 | E25: 9.396496377 | F25: 10.46959552 | G25: 1.073099147 | H25: 24.98645243 | I25: 30.49283534 | J25: 34.35897436 | K25: 43.63247863 | U25: 43.63247863 | V25: 34.35897436
A26: 2003 | B26: 11.24719693 | C26: 12.42327868 | D26: 2.05348156 | E26: 9.193715371 | F26: 10.36979712 | G26: 1.176081749 | H26: 24.23739558 | I26: 29.21600634 | J26: 33.90396025 | K26: 44.59103295 | U26: 44.59103295 | V26: 33.90396025
A27: 2004 | B27: 11.06267576 | C27: 12.33990352 | D27: 2.130399077 | E27: 8.932276682 | F27: 10.20950445 | G27: 1.277227764 | H27: 24.28004559 | I27: 29.93120224 | J27: 33.33222915 | K27: 45.4115024 | U27: 45.4115024 | V27: 33.33222915
A28: 2005 | B28: 11.43552121 | C28: 12.92076478 | D28: 2.332552257 | E28: 9.102968956 | F28: 10.58821252 | G28: 1.485243565 | H28: 24.3014874 | I28: 30.8874662 | J28: 32.57974049 | K28: 46.67361395 | U28: 46.67361395 | V28: 32.57974049
A29: 2006 | B29: 11.67153864 | C29: 13.14917112 | D29: 2.421946121 | E29: 9.249592516 | F29: 10.727225 | G29: 1.477632485 | H29: 25.24968647 | I29: 31.7897939 | J29: 33.21088235 | K29: 47.59651165 | U29: 47.59651165 | V29: 33.21088235
A30: 2007 | B30: 11.83896254 | C30: 13.38677792 | D30: 2.395263608 | E30: 9.44369893 | F30: 10.99151431 | G30: 1.547815381 | H30: 25.61960059 | I30: 32.49605949 | J30: 34.59891453 | K30: 49.2234486 | U30: 49.2234486 | V30: 34.59891453
A31: 2008 | B31: 11.74707731 | C31: 13.23474218 | D31: 2.399560709 | E31: 9.347516598 | F31: 10.83518147 | G31: 1.487664871 | H31: 24.99898276 | I31: 31.64609007 | J31: 33.22113759 | K31: 47.61516324 | U31: 47.61516324 | V31: 33.22113759
A32: 2009 | B32: 11.1717664 | C32: 12.69517915 | D32: 1.855616383 | E32: 9.316150019 | F32: 10.83956277 | G32: 1.523412751 | H32: 23.4435861 | I32: 30.33209323 | J32: 32.46472355 | K32: 47.67603144 | U32: 47.67603144 | V32: 32.46472355
A33: 2010 | B33: 11.83349279 | C33: 13.37037687 | D33: 2.061703433 | E33: 9.77178936 | F33: 11.30867344 | G33: 1.536884081 | H33: 25.83411992 | I33: 32.90141537 | J33: 34.70959328 | K33: 50.22046571 | U33: 50.22046571 | V33: 34.70959328
A34: 2011 | B34: 12.04065126 | C34: 13.66044356 | D34: 2.393567765 | E34: 9.647083496 | F34: 11.26687579 | G34: 1.619792296 | H34: 26.61828949 | I34: 34.18382335 | J34: 35.27052975 | K34: 51.5801105
A35: 2012 | B35: 11.92008372 | C35: 13.61598063 | D35: 2.22352465 | E35: 9.696559066 | F35: 11.39245598 | G35: 1.695896916 | H35: 26.40184365 | I35: 34.55932413 | J35: 33.99704863 | K35: 51.72291065
A36: 2013 | B36: 11.74219785 | C36: 13.51076446 | D36: 2.233352793 | E36: 9.508845058 | F36: 11.27741167 | G36: 1.768566608 | H36: 26.62473148 | I36: 35.28379506 | J36: 35.12411296 | K36: 53.75409737
A37: 2014 | B37: 12.03673143 | C37: 13.62779441 | D37: 2.319553993 | E37: 9.717177433 | F37: 11.30824041 | G37: 1.59106298 | H37: 27.21359711 | I37: 34.98197212 | J37: 36.45646366 | K37: 52.8747404

Sheet NEET
F2: 15-29 year-olds
F3: Total (young men + young women)
F4: In education | R4: Not in education | AB4: Total in education and not in education
F5: Employed | H5: Employed | L5: Unemployed | N5: Inactive | P5: Sub-total (employed + unemployed + inactive) | R5: Employed | T5: NEET | V5: NEET | Z5: Sub-total (employed + unemployed + inactive)
H6: Students in work-study programmes | J6: Other employed | V6: Unemployed | X6: Inactive
B7: en études | C7: en emploi | D7: ni en études ni en emploi (NEET) | F7: 1 | H7: 2 | J7: 3 | L7: 4 | N7: 5 | P7: 6 | R7: 7 | T7: 8 | V7: 9 | X7: 10 | Z7: 11 | AB7: 12
A8: Pays Bas | B8: 55.87302017 | C8: 35.85899353 | D8: 8.267985344 | E8: =B8+C8+D8 -> 99.99999905 | G8: 7.91371727 | I8: 10.70233154 | K8: 0.978290081 | M8: 27.65871429 | O8: 47.25305176 | Q8: 42.3081398 | S8: 10.43881226 | U8: 4.749224663 | W8: 5.689587593 | Y8: 52.74694824 | AA8: 100
A9: Allemagne | B9: 53.75853729 | C9: 37.67388153 | D9: 8.567577362 | E9: =B9+C9+D9 -> 99.99999619 | G9: 0.2751908302 | I9: 2.594501734 | K9: 0.5237534642 | M9: 43.82469559 | O9: 47.21813965 | Q9: 38.97294998 | S9: 13.80890942 | U9: 7.364099026 | W9: 6.444810867 | Y9: 52.78185654 | AA9: 100
A10: Suède | B10: 51.14746857 | C10: 39.77536392 | D10: 9.077163696 | E10: =B10+C10+D10 -> 99.99999619 | H10: x(3) | I10: 31.83890533 | K10: 2.924401045 | M10: 25.75933838 | O10: 60.52264404 | Q10: 28.97097969 | S10: 10.50637531 | U10: 4.014646053 | W10: 6.491728783 | Y10: 39.47735596 | AA10: 100
A11: Norvége | B11: 45.57703781 | C11: 45.26459885 | D11: 9.158368111 | E11: =B11+C11+D11 -> 100.0000048 | H11: x(3) | I11: 15.63301945 | K11: 4.708280563 | M11: 32.89519882 | O11: 53.23649979 | Q11: 32.45176315 | S11: 14.31173515 | U11: 6.442277908 | W11: 7.869457722 | Y11: 46.76350021 | AA11: 100
A12: Autriche | B12: 47.25305176 | C12: 42.3081398 | D12: 10.43881226 | E12: =B12+C12+D12 -> 100.0000038 | H12: x(3) | I12: 7.109807014 | K12: 0.6599629521 | M12: 39.70830917 | O12: 47.47808075 | Q12: 35.32099152 | S12: 17.20092201 | U12: 9.666656494 | W12: 7.534265518 | Y12: 52.52191544 | AA12: 100
A13: Danemark | B13: 60.52264404 | C13: 28.97097969 | D13: 10.50637531 | E13: =B13+C13+D13 -> 99.99999905 | G13: 10.10346985 | I13: 10.21123695 | K13: 0.7968071103 | M13: 32.64702225 | O13: 53.75853729 | Q13: 37.67388153 | S13: 8.567577362 | U13: 3.352568865 | W13: 5.215008736 | Y13: 46.24145889 | AA13: 100
A14: Royaume-Uni | B14: 41.04821777 | C14: 45.21033859 | D14: 13.7414465 | E14: =B14+C14+D14 -> 100.0000029 | H14: a | I14: 1.839355707 | K14: 0.8707008958 | M14: 44.36221313 | O14: 47.07226944 | Q14: 25.54418755 | S14: 27.38354301 | U14: 12.29865074 | W14: 15.08489323 | Y14: 52.92773056 | AA14: 100
A15: Belgique | B15: 47.21813965 | C15: 38.97294998 | D15: 13.80890942 | E15: =B15+C15+D15 -> 99.99999905 | H15: x(3) | I15: 32.16527176 | K15: 4.0145998 | M15: 19.69314957 | O15: 55.87302017 | Q15: 35.85899353 | S15: 8.267985344 | U15: 3.006686926 | W15: 5.26129818 | Y15: 44.12697601 | AA15: 100
A16: Finlande | B16: 53.23649979 | C16: 32.45176315 | D16: 14.31173515 | E16: =B16+C16+D16 -> 99.99999809 | G16: 0.4296036363 | I16: 14.33313847 | K16: 2.304237604 | M16: 28.51005745 | O16: 45.57703781 | Q16: 45.26459885 | S16: 9.158368111 | U16: 3.143917322 | W16: 6.01445055 | Y16: 54.422966 | AA16: 100.0000076
A17: Moyenne OCDE | B17: 47.49229976 | C17: 37.89673854 | D17: 14.61096096 | E17: =B17+C17+D17 -> 99.99999926 | H17: a | I17: 5.634427547 | K17: 0.8577343822 | M17: 38.52410507 | O17: 45.01626587 | Q17: 39.33747482 | S17: 15.64625835 | U17: 6.595681667 | W17: 9.050577164 | Y17: 54.98373413 | AA17: 100
A18: Moyenne UE 22 | B18: 48.79192907 | C18: 36.49776372 | D18: 14.71030621 | E18: =B18+C18+D18 -> 99.999999 | H18: a | I18: 3.774040699 | K18: 2.023450851 | M18: 43.99324036 | O18: 49.79073334 | Q18: 34.86690903 | S18: 15.34235573 | U18: 10.7724762 | W18: 4.569880009 | Y18: 50.20926666 | AA18: 100
A19: Portugal | B19: 49.79073334 | C19: 34.86690903 | D19: 15.34235573 | E19: =B19+C19+D19 -> 99.99999809 | H19: x(3) | I19: 5.018410683 | K19: 4.508085251 | M19: 40.1894989 | O19: 49.71599197 | Q19: 27.46076965 | S19: 22.82323837 | U19: 16.02832603 | W19: 6.794911861 | Y19: 50.28400803 | AA19: 100
A20: Pologne | B20: 45.01626587 | C20: 39.33747482 | D20: 15.64625835 | E20: =B20+C20+D20 -> 99.99999905 | H20: a | I20: 12.77606773 | K20: 6.377233982 | M20: 31.99416733 | O20: 51.14746857 | Q20: 39.77536392 | S20: 9.077163696 | U20: 4.676278114 | W20: 4.400885582 | Y20: 48.85252762 | AA20: 100
A21: France | B21: 47.47808075 | C21: 35.32099152 | D21: 17.20092201 | E21: =B21+C21+D21 -> 99.99999428 | G21: 2.863623857 | I21: 11.13586044 | K21: 2.295476913 | M21: 24.75325584 | O21: 41.04821777 | Q21: 45.21033859 | S21: 13.7414465 | U21: 4.983950138 | W21: 8.75749588 | Y21: 58.95178223 | AA21: 100
A22: Espagne | B22: 49.71599197 | C22: 27.46076965 | D22: 22.82323837 | E22: =B22+C22+D22 -> 100 | H22: M | I22: 11.24958721 | K22: 1.828051458 | M22: 33.24957581 | O22: 47.49229976 | Q22: 37.89673854 | S22: 14.61096096 | U22: 6.174787419 | W22: 8.436173609 | Y22: 52.50769937 | AA22: 100.0000007
A23: Italie | B23: 47.07226944 | C23: 25.54418755 | D23: 27.38354301 | E23: =B23+C23+D23 -> 100 | H23: m | I23: 9.404382733 | K23: 1.832016395 | M23: 36.55134964 | O23: 48.79192907 | Q23: 36.49776372 | S23: 14.71030621 | U23: 7.503855369 | W23: 7.206450928 | Y23: 51.20806971 | AA23: 100.0000003

Sheet sitprincjeunes
A2: 18-24
A3: Étiquettes de lignes | F3: Somme de tot_13 | G3: Somme de tot_14 | H3: Somme de tot_15 | P3: Somme de tot_13 | Q3: Somme de tot_14 | R3: Somme de tot_15 | T3: 2013-2015
A4: Autres inactifs | F4: 397804.07 | G4: 448545.1 | H4: 475506.38 | J4: =SUM(F4:H4)/3 -> 440618.5167 | P4: =F4/F13 -> 0.0788227846 | Q4: =G4/G13 -> 0.087329693 | R4: =H4/H13 -> 0.09361473302 | T4: =J4/J13 -> 0.08660840681
A5: Chômeur BIT | F5: 615858.98 | G5: 635161.34 | H5: 658446.3 | J5: 636488.8733 | P5: =F5/F13 -> 0.1220292184 | Q5: =G5/G13 -> 0.123663027 | R5: =H5/H13 -> 0.1296308045 | T5: =J5/J13 -> 0.1251088758
A6: Emploi précaire | F6: 242615.43 | G6: 310200.71 | H6: 336197.18 | J6: 296337.7733 | P6: =F6/F13 -> 0.04807297165 | Q6: =G6/G13 -> 0.06039466883 | R6: =H6/H13 -> 0.06618840581 | T6: =J6/J13 -> 0.05824844271
A7: Emploi CDD | F7: 474228.01 | G7: 476368.55 | H7: 493611.89 | J7: 481402.8167 | P7: =F7/F13 -> 0.09396578643 | Q7: =G7/G13 -> 0.0927467923 | R7: =H7/H13 -> 0.097179233 | T7: =J7/J13 -> 0.09462500872
A8: Non salarié | F8: 49026.73 | G8: 50870.12 | H8: 47642.65 | J8: 49179.83333 | P8: =F8/F13 -> 0.00971438874 | Q8: =G8/G13 -> 0.009904181235 | R8: =H8/H13 -> 0.009379588051 | T8: =J8/J13 -> 0.009666836165
A9: Emploi CDI | F9: 897553.99 | G9: 897942.4 | H9: 856007.27 | J9: 883834.5533 | P9: =F9/F13 -> 0.1778456033 | Q9: =G9/G13 -> 0.1748253055 | R9: =H9/H13 -> 0.1685253772 | T9: =J9/J13 -> 0.1737273847
A10: Apprentis | F10: 279962.89 | G10: 253838.77 | H10: 257886.9 | J10: 263896.1867 | P10: =F10/F13 -> 0.05547317446 | Q10: =G10/G13 -> 0.0494212552 | R10: =H10/H13 -> 0.05077116587 | T10: =J10/J13 -> 0.05187169269
A11: Etudiant, élève, stagiaire en formation (inactifs) | F11: 2089676.09 | G11: 2062769.21 | H11: 1953768.51 | J11: 2035404.603 | P11: =F11/F13 -> 0.4140583286 | Q11: =G11/G13 -> 0.401611793 | R11: =H11/H13 -> 0.3846457695 | T11: =J11/J13 -> 0.4000811206
A12: Non renseigné | F12: 89.55 | G12: 530.49 | H12: 329.77 | J12: 316.6033333
A13: Total général | F13: 5046815.74 | G13: 5136226.69 | H13: 5079396.85 | J13: 5087479.76 | P13: =SUM(P4:P12) -> 0.9999822561 | Q13: =SUM(Q4:Q12) -> 0.999896716 | R13: =SUM(R4:R12) -> 0.9999350769 | T13: =SUM(T4:T12) -> 0.9999377681
A18: 18
A19: Étiquettes de lignes | F19: Somme de tot_13 | G19: Somme de tot_14 | H19: Somme de tot_15 | P19: Somme de tot_13 | Q19: Somme de tot_14 | R19: Somme de tot_15 | T19: 2013-2015
A20: Autres inactifs | F20: 37536.05 | G20: 42858.1 | H20: 39138.12 | J20: =SUM(F20:H20)/3 -> 39844.09 | P20: =F20/F29 -> 0.05232324605 | Q20: =G20/G29 -> 0.0565347565 | R20: =H20/H29 -> 0.05141673439 | T20: =J20/J29 -> 0.0534421649
A21: Chômeur BIT | F21: 59711.81 | G21: 60457.44 | H21: 59357.93 | J21: 59842.39333 | P21: =F21/F29 -> 0.0832350694 | Q21: =G21/G29 -> 0.07975030739 | R21: =H21/H29 -> 0.07798000826 | T21: =J21/J29 -> 0.08026553129
A22: Emploi précaire | F22: 9029.71 | G22: 10277.69 | H22: 13069.75 | J22: 10792.38333 | P22: =F22/F29 -> 0.01258693278 | Q22: =G22/G29 -> 0.01355745359 | R22: =H22/H29 -> 0.01717005989 | T22: =J22/J29 -> 0.01447563063
A23: Emploi CDD | F23: 23515.79 | G23: 23444.24 | H23: 24121.6 | J23: 23693.87667 | P23: =F23/F29 -> 0.0327797535 | Q23: =G23/G29 -> 0.03092564532 | R23: =H23/H29 -> 0.0316891537 | T23: =J23/J29 -> 0.03178017277
A24: Non salarié | F24: 699.03 | G24: 467.83 | H24: 656.86 | J24: 607.9066667 | P24: =F24/F29 -> 0.0009744104317 | Q24: =G24/G29 -> 0.0006171215041 | R24: =H24/H29 -> 0.0008629335326 | T24: =J24/J29 -> 0.0008153743335
A25: Emploi CDI | F25: 19698.41 | G25: 18270.04 | H25: 16988.31 | J25: 18318.92 | P25: =F25/F29 -> 0.02745852995 | Q25: =G25/G29 -> 0.02410028122 | R25: =H25/H29 -> 0.02231797089 | T25: =J25/J29 -> 0.02457083958
A26: Apprentis | F26: 42184.6 | G26: 46784.96 | H26: 43096.45 | J26: 44022.00333 | P26: =F26/F29 -> 0.05880307612 | Q26: =G26/G29 -> 0.06171473587 | R26: =H26/H29 -> 0.05661689225 | T26: =J26/J29 -> 0.05904592529
A27: Etudiant, élève, stagiaire en formation (inactifs) | F27: 525012.24 | G27: 555360.81 | H27: 564765.18 | J27: 548379.41 | P27: =F27/F29 -> 0.7318389818 | Q27: =G27/G29 -> 0.7325846961 | R27: =H27/H29 -> 0.7419462471 | T27: =J27/J29 -> 0.7355314893
A28: Non renseigné | F28: 0 | G28: 162.99 | H28: 0 | J28: 54.33
A29: Total général | F29: 717387.64 | G29: 758084.1 | H29: 761194.2 | J29: 745555.3133 | P29: =SUM(P20:P28) -> 1 | Q29: =SUM(Q20:Q28) -> 0.9997849975 | R29: =SUM(R20:R28) -> 1 | T29: =SUM(T20:T28) -> 0.9999271281
A31: 19
A32: Étiquettes de lignes | F32: Somme de tot_13 | G32: Somme de tot_14 | H32: Somme de tot_15 | P32: Somme de tot_13 | Q32: Somme de tot_14 | R32: Somme de tot_15 | T32: 2013-2015
A33: Autres inactifs | F33: 46090.05 | G33: 54931.45 | H33: 61810.7 | J33: =SUM(F33:H33)/3 -> 54277.4 | P33: =F33/F42 -> 0.06538638959 | Q33: =G33/G42 -> 0.07522353179 | R33: =H33/H42 -> 0.08845866493 | T33: =J33/J42 -> 0.07630794076
A34: Chômeur BIT | F34: 73940.67 | G34: 87027.14 | H34: 86227.94 | J34: 82398.58333 | P34: =F34/F42 -> 0.1048971189 | Q34: =G34/G42 -> 0.1191756058 | R34: =H34/H42 -> 0.1234027191 | T34: =J34/J42 -> 0.1158431726
A35: Emploi précaire | F35: 20112.5 | G35: 29940.44 | H35: 27092.08 | J35: 25715.00667 | P35: =F35/F42 -> 0.02853292111 | Q35: =G35/G42 -> 0.04100065882 | R35: =H35/H42 -> 0.03877207712 | T35: =J35/J42 -> 0.03615241713
A36: Emploi CDD | F36: 45618.87 | G36: 46253.38 | H36: 49158.5 | J36: 47010.25 | P36: =F36/F42 -> 0.06471794252 | Q36: =G36/G42 -> 0.06333971888 | R36: =H36/H42 -> 0.07035182064 | T36: =J36/J42 -> 0.06609114239
A37: Non salarié | F37: 560.6 | G37: 2240.19 | H37: 1029.22 | J37: 1276.67 | P37: =F37/F42 -> 0.0007953041926 | Q37: =G37/G42 -> 0.003067732668 | R37: =H37/H42 -> 0.00147293959 | T37: =J37/J42 -> 0.001794854925
A38: Emploi CDI | F38: 42933.77 | G38: 44681.37 | H38: 37503.59 | J38: 41706.24333 | P38: =F38/F42 -> 0.06090868228 | Q38: =G38/G42 -> 0.06118699682 | R38: =H38/H42 -> 0.05367222021 | T38: =J38/J42 -> 0.05863430351
A39: Apprentis | F39: 41075.69 | G39: 41723.96 | H39: 37388.9 | J39: 40062.85 | P39: =F39/F42 -> 0.05827268725 | Q39: =G39/G42 -> 0.05713709781 | R39: =H39/H42 -> 0.0535080848 | T39: =J39/J42 -> 0.05632387669
A40: Etudiant, élève, stagiaire en formation (inactifs) | F40: 434555.37 | G40: 423375.78 | H40: 398541.42 | J40: 418824.19 | P40: =F40/F42 -> 0.6164889542 | Q40: =G40/G42 -> 0.5797739081 | R40: =H40/H42 -> 0.5703614736 | T40: =J40/J42 -> 0.5888198676
A41: Non renseigné | F41: 0 | G41: 69.19 | H41: 0 | J41: 23.06333333
A42: Total général | F42: 704887.52 | G42: 730242.9 | H42: 698752.35 | J42: 711294.2567 | P42: =SUM(P33:P41) -> 1 | Q42: =SUM(Q33:Q41) -> 0.9999052507 | R42: =SUM(R33:R41) -> 1 | T42: =SUM(T33:T41) -> 0.9999675755
A44: 20
A45: Étiquettes de lignes | F45: Somme de tot_13 | G45: Somme de tot_14 | H45: Somme de tot_15 | P45: Somme de tot_13 | Q45: Somme de tot_14 | R45: Somme de tot_15 | T45: 2013-2015
A46: Autres inactifs | F46: 50276.02 | G46: 58536.1 | H46: 71113.94 | J46: =SUM(F46:H46)/3 -> 59975.35333 | P46: =F46/F55 -> 0.06494887661 | Q46: =G46/G55 -> 0.07931610169 | R46: =H46/H55 -> 0.09310026121 | T46: =J46/J55 -> 0.07905575145
A47: Chômeur BIT | F47: 95842.28 | G47: 101588.42 | H47: 106642.82 | J47: 101357.84 | P47: =F47/F55 -> 0.1238134685 | Q47: =G47/G55 -> 0.1376517645 | R47: =H47/H55 -> 0.1396136172 | T47: =J47/J55 -> 0.1336035515
A48: Emploi précaire | F48: 30335 | G48: 39410.01 | H48: 47816.69 | J48: 39187.23333 | P48: =F48/F55 -> 0.03918814918 | Q48: =G48/G55 -> 0.05340035227 | R48: =H48/H55 -> 0.06260019244 | T48: =J48/J55 -> 0.05165415469
A49: Emploi CDD | F49: 61773.11 | G49: 60144.47 | H49: 71302.97 | J49: 64406.85 | P49: =F49/F55 -> 0.07980134664 | Q49: =G49/G55 -> 0.08149543441 | R49: =H49/H55 -> 0.09334773368 | T49: =J49/J55 -> 0.08489707259
A50: Non salarié | F50: 4203.47 | G50: 3938.11 | H50: 5084.4 | J50: 4408.66 | P50: =F50/F55 -> 0.005430236013 | Q50: =G50/G55 -> 0.005336117938 | R50: =H50/H55 -> 0.006656345691 | T50: =J50/J55 -> 0.005811219273
A51: Emploi CDI | F51: 84483.6 | G51: 73972.08 | H51: 75776.26 | J51: 78077.31333 | P51: =F51/F55 -> 0.1091398029 | Q51: =G51/G55 -> 0.1002317718 | R51: =H51/H55 -> 0.09920403229 | T51: =J51/J55 -> 0.1029166205
A52: Apprentis | F52: 54497.92 | G52: 44814.16 | H52: 44358.69 | J52: 47890.25667 | P52: =F52/F55 -> 0.07040292135 | Q52: =G52/G55 -> 0.06072294655 | R52: =H52/H55 -> 0.0580730814 | T52: =J52/J55 -> 0.06312593453
A53: Etudiant, élève, stagiaire en formation (inactifs) | F53: 392674.66 | G53: 355606.95 | H53: 341746.77 | J53: 363342.7933 | P53: =F53/F55 -> 0.5072751988 | Q53: =G53/G55 -> 0.4818455108 | R53: =H53/H55 -> 0.4474047361 | T53: =J53/J55 -> 0.4789356955
A54: Non renseigné | F54: 0 | G54: 0 | H54: 0 | J54: 0
A55: Total général | F55: 774086.06 | G55: 738010.3 | H55: 763842.54 | J55: 758646.3 | P55: =SUM(P46:P54) -> 1 | Q55: =SUM(Q46:Q54) -> 1 | R55: =SUM(R46:R54) -> 1 | T55: =SUM(T46:T54) -> 1
A57: 21
A58: Étiquettes de lignes | F58: Somme de tot_13 | G58: Somme de tot_14 | H58: Somme de tot_15 | P58: Somme de tot_13 | Q58: Somme de tot_14 | R58: Somme de tot_15 | T58: 2013-2015
A59: Autres inactifs | F59: 62200.48 | G59: 66315.26 | H59: 71058.1 | J59: =SUM(F59:H59)/3 -> 66524.61333 | P59: =F59/F68 -> 0.08410292778 | Q59: =G59/G68 -> 0.08780901097 | R59: =H59/H68 -> 0.09958860649 | T59: =J59/J68 -> 0.09037386637
A60: Chômeur BIT | F60: 102312.29 | G60: 96013.45 | H60: 103084.9 | J60: 100470.2133 | P60: =F60/F68 -> 0.1383391758 | Q60: =G60/G68 -> 0.1271328211 | R60: =H60/H68 -> 0.1444744729 | T60: =J60/J68 -> 0.1364890554
A61: Emploi précaire | F61: 44252.76 | G61: 49821.92 | H61: 54597.63 | J61: 49557.43667 | P61: =F61/F68 -> 0.05983533693 | Q61: =G61/G68 -> 0.06596993693 | R61: =H61/H68 -> 0.07651910042 | T61: =J61/J68 -> 0.06732391118
A62: Emploi CDD | F62: 78747.61 | G62: 78149.63 | H62: 73929.23 | J62: 76942.15667 | P62: =F62/F68 -> 0.1064767435 | Q62: =G62/G68 -> 0.1034790743 | R62: =H62/H68 -> 0.1036125226 | T62: =J62/J68 -> 0.104526127
A63: Non salarié | F63: 4081.88 | G63: 5476.83 | H63: 4722.96 | J63: 4760.556667 | P63: =F63/F68 -> 0.005519218804 | Q63: =G63/G68 -> 0.007251951143 | R63: =H63/H68 -> 0.006619273593 | T63: =J63/J68 -> 0.006467229052
A64: Emploi CDI | F64: 115894.02 | G64: 117500.28 | H64: 108074.36 | J64: 113822.8867 | P64: =F64/F68 -> 0.1567033951 | Q64: =G64/G68 -> 0.1555838487 | R64: =H64/H68 -> 0.1514672488 | T64: =J64/J68 -> 0.1546286981
A65: Apprentis | F65: 42392.42 | G65: 42031.9 | H65: 40946.89 | J65: 41790.40333 | P65: =F65/F68 -> 0.05731992161 | Q65: =G65/G68 -> 0.05565505689 | R65: =H65/H68 -> 0.0573874578 | T65: =J65/J68 -> 0.05677237547
A66: Etudiant, élève, stagiaire en formation (inactifs) | F66: 289604.67 | G66: 299794.04 | H66: 257102.29 | J66: 282167 | P66: =F66/F68 -> 0.3915821975 | Q66: =G66/G68 -> 0.396961697 | R66: =H66/H68 -> 0.3603313174 | T66: =J66/J68 -> 0.3833246294
A67: Non renseigné | F67: 89.55 | G67: 118.27 | H67: 0 | J67: 69.27333333
A68: Total général | F68: 739575.68 | G68: 755221.58 | H68: 713516.36 | J68: 736104.54 | P68: =SUM(P59:P67) -> 0.9998789171 | Q68: =SUM(Q59:Q67) -> 0.999843397 | R68: =SUM(R59:R67) -> 1 | T68: =SUM(T59:T67) -> 0.999905892
A70: 22
A71: Étiquettes de lignes | F71: Somme de tot_13 | G71: Somme de tot_14 | H71: Somme de tot_15 | P71: Somme de tot_13 | Q71: Somme de tot_14 | R71: Somme de tot_15 | T71: 2013-2015
A72: Autres inactifs | F72: 70808.04 | G72: 71052.72 | H72: 68374.95 | J72: =SUM(F72:H72)/3 -> 70078.57 | P72: =F72/F81 -> 0.09776727387 | Q72: =G72/G81 -> 0.09503368939 | R72: =H72/H81 -> 0.09507229142 | T72: =J72/J81 -> 0.09594992549
A73: Chômeur BIT | F73: 97532.46 | G73: 97911.89 | H73: 101000.58 | J73: 98814.97667 | P73: =F73/F81 -> 0.1346666668 | Q73: =G73/G81 -> 0.130958085 | R73: =H73/H81 -> 0.1404367619 | T73: =J73/J81 -> 0.1352951359
A74: Emploi précaire | F74: 44405.2 | G74: 67315.86 | H74: 63895.24 | J74: 58538.76667 | P74: =F74/F81 -> 0.06131189833 | Q74: =G74/G81 -> 0.09003560357 | R74: =H74/H81 -> 0.08884345624 | T74: =J74/J81 -> 0.08014989889
A75: Emploi CDD | F75: 90722.9 | G75: 85032.68 | H75: 82342.46 | J75: 86032.68 | P75: =F75/F81 -> 0.125264456 | Q75: =G75/G81 -> 0.113732019 | R75: =H75/H81 -> 0.1144934856 | T75: =J75/J81 -> 0.1177939167
A76: Non salarié | F76: 8061.84 | G76: 6958.39 | H76: 8759.15 | J76: 7926.46 | P76: =F76/F81 -> 0.01113128 | Q76: =G76/G81 -> 0.009306912866 | R76: =H76/H81 -> 0.01217920395 | T76: =J76/J81 -> 0.01085272212
A77: Emploi CDI | F77: 151950.98 | G77: 170772.38 | H77: 158629.91 | J77: 160451.09 | P77: =F77/F81 -> 0.2098043256 | Q77: =G77/G81 -> 0.2284096839 | R77: =H77/H81 -> 0.2205677523 | T77: =J77/J81 -> 0.2196858488
A78: Apprentis | F78: 43086.84 | G78: 35656.05 | H78: 38990.19 | J78: 39244.36 | P78: =F78/F81 -> 0.05949159003 | Q78: =G78/G81 -> 0.0476903063 | R78: =H78/H81 -> 0.05421410482 | T78: =J78/J81 -> 0.05373245228
A79: Etudiant, élève, stagiaire en formation (inactifs) | F79: 217682.68 | G79: 212958.26 | H79: 197076.36 | J79: 209239.1 | P79: =F79/F81 -> 0.3005625095 | Q79: =G79/G81 -> 0.2848337 | R79: =H79/H81 -> 0.2740258111 | T79: =J79/J81 -> 0.2864852416
A80: Non renseigné | F80: 0 | G80: 0 | H80: 120.2 | J80: 40.06666667
A81: Total général | F81: 724250.94 | G81: 747658.23 | H81: 719189.04 | J81: 730366.07 | P81: =SUM(P72:P80) -> 1 | Q81: =SUM(Q72:Q80) -> 1 | R81: =SUM(R72:R80) -> 0.9998328673 | T81: =SUM(T72:T80) -> 0.9999451417
A83: 23
A84: Étiquettes de lignes | F84: Somme de tot_13 | G84: Somme de tot_14 | H84: Somme de tot_15 | P84: Somme de tot_13 | Q84: Somme de tot_14 | R84: Somme de tot_15 | T84: 2013-2015
A85: Autres inactifs | F85: 64128.48 | G85: 78778.12 | H85: 83398.12 | J85: =SUM(F85:H85)/3 -> 75434.90667 | P85: =F85/F94 -> 0.08995153317 | Q85: =G85/G94 -> 0.1103744698 | R85: =H85/H94 -> 0.1160365469 | T85: =J85/J94 -> 0.1054846571
A86: Chômeur BIT | F86: 91000 | G86: 99399.45 | H86: 101868.23 | J86: 97422.56 | P86: =F86/F94 -> 0.1276435917 | Q86: =G86/G94 -> 0.1392666085 | R86: =H86/H94 -> 0.1417350612 | T86: =J86/J94 -> 0.1362311665
A87: Emploi précaire | F87: 49719.77 | G87: 61368.03 | H87: 63332.59 | J87: 58140.13 | P87: =F87/F94 -> 0.06974076947 | Q87: =G87/G94 -> 0.08598153617 | R87: =H87/H94 -> 0.08811823394 | T87: =J87/J94 -> 0.08130044758
A88: Emploi CDD | F88: 84817.72 | G88: 90561.87 | H88: 101885.49 | J88: 92421.69333 | P88: =F88/F94 -> 0.1189718508 | Q88: =G88/G94 -> 0.1268844495 | R88: =H88/H94 -> 0.1417590761 | T88: =J88/J94 -> 0.1292381877
A89: Non salarié | F89: 14635.75 | G89: 14558.58 | H89: 10799.33 | J89: 13331.22 | P89: =F89/F94 -> 0.02052922744 | Q89: =G89/G94 -> 0.02039773923 | R89: =H89/H94 -> 0.01502572194 | T89: =J89/J94 -> 0.01864175661
A90: Emploi CDI | F90: 224275.52 | G90: 207019.14 | H90: 202111.76 | J90: 211135.4733 | P90: =F90/F94 -> 0.3145860759 | Q90: =G90/G94 -> 0.290050433 | R90: =H90/H94 -> 0.281209585 | T90: =J90/J94 -> 0.2952420038
A91: Apprentis | F91: 34698.91 | G91: 26764.86 | H91: 34019.31 | J91: 31827.69333 | P91: =F91/F94 -> 0.04867135715 | Q91: =G91/G94 -> 0.03749971733 | R91: =H91/H94 -> 0.04733300055 | T91: =J91/J94 -> 0.0445063627
A92: Etudiant, élève, stagiaire en formation (inactifs) | F92: 149646.44 | G92: 135104.89 | H92: 121266.59 | J92: 135339.3067 | P92: =F92/F94 -> 0.2099055944 | Q92: =G92/G94 -> 0.189292796 | R92: =H92/H94 -> 0.1687251026 | T92: =J92/J94 -> 0.1892521776
A93: Non renseigné | F93: 0 | G93: 180.04 | H93: 41.45 | J93: 73.83
A94: Total général | F94: 712922.59 | G94: 713734.98 | H94: 718722.87 | J94: 715126.8133 | P94: =SUM(P85:P93) -> 1 | Q94: =SUM(Q85:Q93) -> 0.9997477495 | R94: =SUM(R85:R93) -> 0.9999423283 | T94: =SUM(T85:T93) -> 0.9998967596
A96: 24
A97: Étiquettes de lignes | F97: Somme de tot_13 | G97: Somme de tot_14 | H97: Somme de tot_15 | P97: Somme de tot_13 | Q97: Somme de tot_14 | R97: Somme de tot_15 | T97: 2013-2015
A98: Autres inactifs | F98: 66764.95 | G98: 76073.35 | H98: 80612.45 | J98: =SUM(F98:H98)/3 -> 74483.58333 | P98: =F98/F107 -> 0.09910111886 | Q98: =G98/G107 -> 0.1097304733 | R98: =H98/H107 -> 0.1144771342 | T98: =J98/J107 -> 0.1078867952
A99: Chômeur BIT | F99: 95519.47 | G99: 92763.55 | H99: 100263.9 | J99: 96182.30667 | P99: =F99/F107 -> 0.1417822727 | Q99: =G99/G107 -> 0.1338049166 | R99: =H99/H107 -> 0.1423840106 | T99: =J99/J107 -> 0.1393166166
A100: Emploi précaire | F100: 44760.49 | G100: 52066.76 | H100: 66393.2 | J100: 54406.81667 | P100: =F100/F107 -> 0.0664392715 | Q100: =G100/G107 -> 0.07510265052 | R100: =H100/H107 -> 0.0942844842 | T100: =J100/J107 -> 0.07880631978
A101: Emploi CDD | F101: 89032.01 | G101: 92782.28 | H101: 90871.64 | J101: 90895.31 | P101: =F101/F107 -> 0.1321527509 | Q101: =G101/G107 -> 0.1338319333 | R101: =H101/H107 -> 0.1290461328 | T101: =J101/J107 -> 0.1316585918
A102: Non salarié | F102: 16784.16 | G102: 17230.19 | H102: 16590.73 | J102: 16868.36 | P102: =F102/F107 -> 0.02491320723 | Q102: =G102/G107 -> 0.02485334094 | R102: =H102/H107 -> 0.02356037095 | T102: =J102/J107 -> 0.02443321359
A103: Emploi CDI | F103: 258317.69 | G103: 265727.11 | H103: 256923.08 | J103: 260322.6267 | P103: =F103/F107 -> 0.3834283123 | Q103: =G103/G107 -> 0.3832927241 | R103: =H103/H107 -> 0.3648545345 | T103: =J103/J107 -> 0.3770679746
A104: Apprentis | F104: 22026.51 | G104: 16062.88 | H104: 19086.47 | J104: 19058.62 | P104: =F104/F107 -> 0.0326945768 | Q104: =G104/G107 -> 0.02316957812 | R104: =H104/H107 -> 0.02710455256 | T104: =J104/J107 -> 0.02760572653
A105: Etudiant, élève, stagiaire en formation (inactifs) | F105: 80500.03 | G105: 80568.48 | H105: 73269.9 | J105: 78112.80333 | P105: =F105/F107 -> 0.1194884897 | Q105: =G105/G107 -> 0.1162143832 | R105: =H105/H107 -> 0.1040500342 | T105: =J105/J107 -> 0.11314359
A106: Non renseigné | F106: 0 | G106: 0 | H106: 168.12 | J106: 56.04
A107: Total général | F107: 673705.31 | G107: 693274.6 | H107: 704179.49 | J107: 690386.4667 | P107: =SUM(P98:P106) -> 1 | Q107: =SUM(Q98:Q106) -> 1 | R107: =SUM(R98:R106) -> 0.9997612541 | T107: =SUM(T98:T106) -> 0.9999188281
M112: 18 ans | N112: 19 ans | O112: 20 ans | P112: 21 ans | Q112: 22 ans | R112: 23 ans | S112: 24 ans | T112: 18 à 24 ans
L113: Autres inactifs | M113: =T20 -> 0.0534421649 | N113: =T33 -> 0.07630794076 | O113: =T46 -> 0.07905575145 | P113: =T59 -> 0.09037386637 | Q113: =T72 -> 0.09594992549 | R113: =T85 -> 0.1054846571 | S113: =T98 -> 0.1078867952 | T113: =T4 -> 0.08660840681
L114: Chômeur BIT | M114: 0.08026553129 | N114: 0.1158431726 | O114: 0.1336035515 | P114: 0.1364890554 | Q114: 0.1352951359 | R114: 0.1362311665 | S114: 0.1393166166 | T114: 0.1251088758
L115: Emploi intérimaire | M115: 0.01447563063 | N115: 0.03615241713 | O115: 0.05165415469 | P115: 0.06732391118 | Q115: 0.08014989889 | R115: 0.08130044758 | S115: 0.07880631978 | T115: 0.05824844271
L116: Emploi CDD | M116: 0.03178017277 | N116: 0.06609114239 | O116: 0.08489707259 | P116: 0.104526127 | Q116: 0.1177939167 | R116: 0.1292381877 | S116: 0.1316585918 | T116: 0.09462500872
L117: Non salarié | M117: 0.0008153743335 | N117: 0.001794854925 | O117: 0.005811219273 | P117: 0.006467229052 | Q117: 0.01085272212 | R117: 0.01864175661 | S117: 0.02443321359 | T117: 0.009666836165
L118: Emploi CDI | M118: 0.02457083958 | N118: 0.05863430351 | O118: 0.1029166205 | P118: 0.1546286981 | Q118: 0.2196858488 | R118: 0.2952420038 | S118: 0.3770679746 | T118: 0.1737273847
L119: Apprentis | M119: 0.05904592529 | N119: 0.05632387669 | O119: 0.06312593453 | P119: 0.05677237547 | Q119: 0.05373245228 | R119: 0.0445063627 | S119: 0.02760572653 | T119: 0.05187169269
L120: Etudiant, élève, stagiaire en formation (inactifs) | M120: 0.7355314893 | N120: 0.5888198676 | O120: 0.4789356955 | P120: 0.3833246294 | Q120: 0.2864852416 | R120: 0.1892521776 | S120: 0.11314359 | T120: 0.4000811206
L121: Non renseigné | M121: 0 | N121: 0 | O121: 0 | P121: 0 | Q121: 0 | R121: 0 | S121: 0 | T121: 0
L122: Total général | M122: 0.9999271281 | N122: 0.9999675755 | O122: 1 | P122: 0.999905892 | Q122: 0.9999451417 | R122: 0.9998967596 | S122: 0.9999188281 | T122: 0.9999377681
M125: 18 ans | N125: 19 ans | O125: 20 ans | P125: 21 ans | Q125: 22 ans | R125: 23 ans | S125: 24 ans | U125: 18 à 24 ans
L126: Etudiant, élève, stagiaire en formation (inactifs) | M126: =M120 -> 0.7355314893 | N126: 0.5888198676 | O126: 0.4789356955 | P126: 0.3833246294 | Q126: 0.2864852416 | R126: 0.1892521776 | S126: 0.11314359 | U126: =T120 -> 0.4000811206
L127: Apprentis | M127: =M119 -> 0.05904592529 | N127: 0.05632387669 | O127: 0.06312593453 | P127: 0.05677237547 | Q127: 0.05373245228 | R127: 0.0445063627 | S127: 0.02760572653 | U127: =T119 -> 0.05187169269
L128: Emploi CDI | M128: =M118 -> 0.02457083958 | N128: 0.05863430351 | O128: 0.1029166205 | P128: 0.1546286981 | Q128: 0.2196858488 | R128: 0.2952420038 | S128: 0.3770679746 | U128: =T118 -> 0.1737273847 | V128: =17+9+6 -> 32
L129: Non salarié | M129: =M117 -> 0.0008153743335 | N129: 0.001794854925 | O129: 0.005811219273 | P129: 0.006467229052 | Q129: 0.01085272212 | R129: 0.01864175661 | S129: 0.02443321359 | U129: =T117 -> 0.009666836165
L130: Emploi CDD | M130: =M116 -> 0.03178017277 | N130: 0.06609114239 | O130: 0.08489707259 | P130: 0.104526127 | Q130: 0.1177939167 | R130: 0.1292381877 | S130: 0.1316585918 | U130: =T116 -> 0.09462500872
L131: Emploi intérimaire | M131: =M115 -> 0.01447563063 | N131: 0.03615241713 | O131: 0.05165415469 | P131: 0.06732391118 | Q131: 0.08014989889 | R131: 0.08130044758 | S131: 0.07880631978 | U131: =T115 -> 0.05824844271
L132: Chômeur BIT | M132: =M114 -> 0.08026553129 | N132: 0.1158431726 | O132: 0.1336035515 | P132: 0.1364890554 | Q132: 0.1352951359 | R132: 0.1362311665 | S132: 0.1393166166 | U132: =T114 -> 0.1251088758
L133: Autres inactifs | M133: =M113 -> 0.0534421649 | N133: 0.07630794076 | O133: 0.07905575145 | P133: 0.09037386637 | Q133: 0.09594992549 | R133: 0.1054846571 | S133: 0.1078867952 | U133: =T113 -> 0.08660840681
M138: Graphique - Situation principale des jeunes, moyenne 2013-2015
M170: LECTURE : en moyenne au cours de la période 2013-2015, 74% des jeunes de 18 ans sont élèves, étudiants ou stagiaires en formation.
M171: CHAMP : France entière.
M172: SOURCE : France Stratégie, d’après Insee - enquête Emploi

Sheet NEETdesc
A1: OECD Skills Outlook 2015: Youth, Skills and Employability - © OECD 2015
A2: Chapter 4 | B2: Figure 4.15. Share of youth neither in employment nor in education or training, by parents’ place of birth
A3: Version 1 - Last updated: 22-May-2015
A4: This document and any map included herein are without prejudice to the status of or sovereignty over any territory, to the delimitation of international frontiers and boundaries and to the name of any territory, city or area.
O6: Descendants d'immigrés | P6: Sans ascendance migratoire
N7: Canada | O7: 8.216714477 | P7: 8.174446439
N8: Australie | O8: 9.665344849 | P8: 12.1919874
A9: Figure 4.15. Share of youth neither in employment nor in education or training , by parents’ place of birth | N9: Allemagne | O9: 12.04777852 | P9: 8.61144106
A10: 16-29 year-olds, 2012 | N10: Autriche | O10: 12.60539049 | P10: 7.59477025
N11: Pays Bas | O11: 12.84665954 | P11: 4.087240954
N12: Royaume Uni | O12: 13.05188351 | P12: 17.72900558
N13: Etats Unis | O13: 13.48432458 | P13: 11.56573762
N14: Norvége | O14: 15.83355066 | P14: 6.258991914
N15: Suède | O15: 16.74589102 | P15: 9.870272371
N16: Estonie | O16: 16.77522752 | P16: 10.16445144
N17: Belgique (Flandre) | O17: 21.33746949 | P17: 7.316894117
N18: France | O18: 25.1264004 | P18: 16.79437684
A33: Source: OECD calculations based on the Survey of Adult Skills (PIAAC) (2012) (database).

Sheet Sitjeunes
A1: 30.1 – La situation des jeunes âgés de 15 à 24 ans en 2014
A28: 1. Dont les 1% de jeunes en formation initiale qui sont au chômage au sens du BIT.
A29: Lecture : en 2014, 55 % des jeunes âgés de 15 à 24 ans sont en études initiales sans cumul avec de l'emploi. 8 % des jeunes se déclarent à la fois en situation d'emploi et d'études initiales.
A30: Champ : France métropolitaine, données provisoires.
A31: Source : Insee (enquêtes Emploi) ; calculs : MENESR-DEPP.
A33: Données source
B35: Pourcentage
A37: Études initiales 1 | B37: 0.55
A38: Cumul études initiales et emploi | B38: 0.08
A39: Emploi | B39: 0.21
A40: Chômage (au sens du BIT) | B40: 0.08
A41: Inactivité | B41: 0.08
B42: =SUM(B37:B41) -> 1

Sheet Ancienneté
B1: Structure des transitions des personnes en emploi selon leur ancienneté sur le marché du travail
B2: Ancienneté | C2: Emploi-Emploi | D2: Emploi Emploi avec changement d'entreprise | E2: Emploi-Chômage | F2: Emploi-Inactivité
B3: En études | C3: 0.5486338519 | D3: 0.2198067792 | E3: 0.08124662384 | F3: 0.1503127451 | G3: 1
B4: 0 | C4: 0.5763869499 | D4: 0.2739079829 | E4: 0.07868768401 | F4: 0.07101738324 | G4: 1
B5: 1 | C5: 0.6750283617 | D5: 0.2001547224 | E5: 0.07048524497 | F5: 0.05433167096 | G5: 1
B6: 2 | C6: 0.7304195676 | D6: 0.1684741147 | E6: 0.06687521093 | F6: 0.03423110676 | G6: 1
B7: 3 | C7: 0.765689523 | D7: 0.1466154522 | E7: 0.05600100691 | F7: 0.03169401786 | G7: 1
B8: 4 | C8: 0.8070402346 | D8: 0.1136271145 | E8: 0.04953369378 | F8: 0.02979895707 | G8: 1
B9: 5 | C9: 0.8071802704 | D9: 0.1125243213 | E9: 0.04653587958 | F9: 0.03375952865 | G9: 1
B10: 6 | C10: 0.8313458378 | D10: 0.09753813528 | E10: 0.04274542568 | F10: 0.02837060128 | G10: 1
B11: 7 | C11: 0.8412587954 | D11: 0.08114021189 | E11: 0.04265608995 | F11: 0.03494490273 | G11: 1
B12: 8 | C12: 0.8425965829 | D12: 0.09042262953 | E12: 0.03834625191 | F12: 0.02863453565 | G12: 1
B13: 9 | C13: 0.8577832236 | D13: 0.08141057495 | E13: 0.03227545885 | F13: 0.02853074258 | G13: 1
B14: 10 | C14: 0.8536669497 | D14: 0.08390205747 | E14: 0.0329369868 | F14: 0.02949400599 | G14: 1
B15: 11 | C15: 0.8664904744 | D15: 0.07564515647 | E15: 0.03194757498 | F15: 0.02591679415 | G15: 1
B16: 12 | C16: 0.8812216795 | D16: 0.06883998927 | E16: 0.02784860363 | F16: 0.02208972759 | G16: 1
B17: 13 | C17: 0.8853832381 | D17: 0.06327213359 | E17: 0.02488877166 | F17: 0.02645585663 | G17: 1
B18: 14 | C18: 0.8899899395 | D18: 0.0608810863 | E18: 0.03000204053 | F18: 0.01912693368 | G18: 1
B19: 15 | C19: 0.8941296112 | D19: 0.05885658214 | E19: 0.02533972518 | F19: 0.02167408147 | G19: 1
B20: 16 | C20: 0.8992815899 | D20: 0.06031717051 | E20: 0.02187780557 | F20: 0.01852343402 | G20: 1
B21: 17 | C21: 0.903374802 | D21: 0.05756435263 | E21: 0.02020522194 | F21: 0.0188556234 | G21: 1
B22: 18 | C22: 0.8959899511 | D22: 0.0580768845 | E22: 0.0271066986 | F22: 0.01882646583 | G22: 1
B23: 19 | C23: 0.8986482839 | D23: 0.05893788535 | E23: 0.02518813483 | F23: 0.01722569594 | G23: 1
B24: 20 | C24: 0.9092847827 | D24: 0.05119967526 | E24: 0.02419009243 | F24: 0.01532544957 | G24: 1
B25: 21 | C25: 0.9053566609 | D25: 0.05527829563 | E25: 0.02447919801 | F25: 0.01488584542 | G25: 1
B26: 22 | C26: 0.9097543464 | D26: 0.0475613198 | E26: 0.02674020032 | F26: 0.01594413349 | G26: 1
B27: 23 | C27: 0.9141397441 | D27: 0.04755313193 | E27: 0.0212879452 | F27: 0.01701917878 | G27: 1
B28: 24 | C28: 0.9161970058 | D28: 0.04512504119 | E28: 0.02142733456 | F28: 0.01725061845 | G28: 1
B29: 25 | C29: 0.9203516927 | D29: 0.04410035337 | E29: 0.02217109355 | F29: 0.01337686034 | G29: 1
B30: 26 | C30: 0.9233373892 | D30: 0.04180501839 | E30: 0.02191514016 | F30: 0.01294245221 | G30: 1
B31: 27 | C31: 0.9280036544 | D31: 0.04113993832 | E31: 0.01706500407 | F31: 0.01379140325 | G31: 1
B32: 28 | C32: 0.9319830348 | D32: 0.03259440237 | E32: 0.02377166425 | F32: 0.01165089858 | G32: 1
B33: 29 | C33: 0.9374416569 | D33: 0.03387114717 | E33: 0.01742615412 | F33: 0.01126104185 | G33: 1
B34: 30 | C34: 0.9338854288 | D34: 0.0328230034 | E34: 0.02012006155 | F34: 0.01317150625 | G34: 1
B35: 31 | C35: 0.928219624 | D35: 0.03426237944 | E35: 0.02311749506 | F35: 0.01440050151 | G35: 1
B36: 32 | C36: 0.9342483372 | D36: 0.03071411862 | E36: 0.01613704609 | F36: 0.01890049804 | G36: 1
B37: 33 | C37: 0.9254970116 | D37: 0.03191371293 | E37: 0.01905846053 | F37: 0.02353081498 | G37: 1
B38: 34 | C38: 0.9278776685 | D38: 0.02685572317 | E38: 0.02106870502 | F38: 0.0241979033 | G38: 1
B39: 35 | C39: 0.9265835761 | D39: 0.02556083708 | E39: 0.0172499885 | F39: 0.03060559836 | G39: 1
B40: 36 | C40: 0.91509911 | D40: 0.02682683574 | E40: 0.02102896599 | F40: 0.03704508823 | G40: 1
B41: 37 | C41: 0.9100903524 | D41: 0.02526497065 | E41: 0.01728738358 | F41: 0.04735729332 | G41: 1
B42: 38 | C42: 0.895956938 | D42: 0.03103589552 | E42: 0.01707238868 | F42: 0.05593477777 | G42: 1
B43: 39 | C43: 0.8833571618 | D43: 0.02514409971 | E43: 0.01921654956 | F43: 0.07228218892 | G43: 1
B44: 40 | C44: 0.8791944631 | D44: 0.01996376114 | E44: 0.01713337948 | F44: 0.08370839626 | G44: 1
B45: 41 | C45: 0.8417471028 | D45: 0.02285907612 | E45: 0.02000425661 | F45: 0.1153895645 | G45: 1
B46: 42 | C46: 0.7890318401 | D46: 0.02273266901 | E46: 0.01915021928 | F46: 0.1690852716 | G46: 1
B47: 43 | C47: 0.765607522 | D47: 0.02753693673 | E47: 0.01918704299 | F47: 0.1876684982 | G47: 1
B48: 44 | C48: 0.7956881537 | D48: 0.02285183707 | E48: 0.01530366938 | F48: 0.1661563399 | G48: 1
B49: 45 | C49: 0.7503091747 | D49: 0.0330067822 | E49: 0.01356518573 | F49: 0.2031188574 | G49: 1
B76: *On parle ici d’« ancienneté sur le marché du travail » pour faire référence au temps écoulé depuis la sortie du système scolaire.
B77: Champ : France métropolitaine, population des ménages, personnes en emploi de 15 ans ou plus (âge au dernier jour de la semaine de référence) en n et n+1.
B78: Lecture : en moyenne annuelle, entre 2003 et 2014, 3,3 % des personnes en emploi ayant 10 ans d'ancienneté sur le marché du travail sont au chômage un an après.
B79: Source : France Stratégie, d’après les enquêtes Emploi 2003-2014 (Insee), données pondérées du panel.

Sheet Age
B2: Structure des transitions des personnes en emploi selon leur âge
B3: Age | C3: Emploi-Emploi | D3: Emploi Emploi avec changement d'entreprise | E3: Emploi-Chômage | F3: Emploi-Inactivité
B4: 16 | C4: 0.6677391828 | D4: 0.1338358162 | E4: 0.06610574586 | F4: 0.1323192551 | G4: 1
B5: 17 | C5: 0.5514787408 | D5: 0.2115070659 | E5: 0.1054443534 | F5: 0.1315698399 | G5: 1
B6: 18 | C6: 0.4679268254 | D6: 0.2675664506 | E6: 0.129168435 | F6: 0.1353382891 | G6: 1
B7: 19 | C7: 0.4868100084 | D7: 0.2810817316 | E7: 0.1036888737 | F7: 0.1284193862 | G7: 1
B8: 20 | C8: 0.5358096165 | D8: 0.2674953132 | E8: 0.1049771641 | F8: 0.09171790617 | G8: 1
B9: 21 | C9: 0.5678241209 | D9: 0.2332956879 | E9: 0.1014378917 | F9: 0.09744229946 | G9: 1
B10: 22 | C10: 0.6597778537 | D10: 0.1968735027 | E10: 0.07300500302 | F10: 0.07034364051 | G10: 1
B11: 23 | C11: 0.696697206 | D11: 0.1803197386 | E11: 0.06582819246 | F11: 0.05715486293 | G11: 1
B12: 24 | C12: 0.7477808687 | D12: 0.147109395 | E12: 0.05865260862 | F12: 0.0464571277 | G12: 1
B13: 25 | C13: 0.7925569611 | D13: 0.1235903241 | E13: 0.05019012732 | F13: 0.03366258753 | G13: 1
B14: 26 | C14: 0.8129682719 | D14: 0.1061528596 | E14: 0.04469060401 | F14: 0.03618826454 | G14: 1
B15: 27 | C15: 0.8000158102 | D15: 0.1117977889 | E15: 0.04586683183 | F15: 0.04231956905 | G15: 1
B16: 28 | C16: 0.8368804222 | D16: 0.0955625112 | E16: 0.03974111227 | F16: 0.02781595435 | G16: 1
B17: 29 | C17: 0.8551577073 | D17: 0.08066199879 | E17: 0.03428332219 | F17: 0.02989697169 | G17: 1
B18: 30 | C18: 0.8620885144 | D18: 0.07631439114 | E18: 0.03237966106 | F18: 0.02921743336 | G18: 1
B19: 31 | C19: 0.8729633006 | D19: 0.07685276544 | E19: 0.02649422461 | F19: 0.02368970935 | G19: 1
B20: 32 | C20: 0.8652400638 | D20: 0.0797203865 | E20: 0.02966603948 | F20: 0.02537351018 | G20: 1
B21: 33 | C21: 0.8772222905 | D21: 0.06990598543 | E21: 0.02913169658 | F21: 0.02374002753 | G21: 1
B22: 34 | C22: 0.8798845573 | D22: 0.07134996748 | E22: 0.0268142607 | F22: 0.02195121455 | G22: 1
B23: 35 | C23: 0.8971653977 | D23: 0.05459279938 | E23: 0.02453132004 | F23: 0.02371048288 | G23: 1
B24: 36 | C24: 0.9005089085 | D24: 0.05620323004 | E24: 0.02230709604 | F24: 0.02098076545 | G24: 1
B25: 37 | C25: 0.9026068007 | D25: 0.05461364731 | E25: 0.02497517725 | F25: 0.01780437472 | G25: 1
B26: 38 | C26: 0.9042091882 | D26: 0.05564880348 | E26: 0.02538545724 | F26: 0.01475655109 | G26: 1
B27: 39 | C27: 0.9092907634 | D27: 0.05326647759 | E27: 0.02271157874 | F27: 0.01473118023 | G27: 1
B28: 40 | C28: 0.9141990521 | D28: 0.04635781619 | E28: 0.02245543714 | F28: 0.01698769455 | G28: 1
B29: 41 | C29: 0.9215916766 | D29: 0.04608090074 | E29: 0.01883278027 | F29: 0.01349464239 | G29: 1
B30: 42 | C30: 0.9164031497 | D30: 0.0502372433 | E30: 0.02288703094 | F30: 0.01047257606 | G30: 1
B31: 43 | C31: 0.9251600343 | D31: 0.03980427463 | E31: 0.0203039521 | F31: 0.01473173901 | G31: 1
B32: 44 | C32: 0.928453271 | D32: 0.03763971765 | E32: 0.02278968867 | F32: 0.01111732268 | G32: 1
B33: 45 | C33: 0.9238907672 | D33: 0.04232113659 | E33: 0.02187915429 | F33: 0.01190894188 | G33: 1
B34: 46 | C34: 0.9316749969 | D34: 0.03353183196 | E34: 0.02031701511 | F34: 0.01447615607 | G34: 1
B35: 47 | C35: 0.9391588312 | D35: 0.03300970921 | E35: 0.01597690227 | F35: 0.01185455728 | G35: 1
B36: 48 | C36: 0.9310608186 | D36: 0.03666807252 | E36: 0.01910219291 | F36: 0.01316891596 | G36: 1
B37: 49 | C37: 0.933611162 | D37: 0.02936369045 | E37: 0.02025649473 | F37: 0.01676865281 | G37: 1
B38: 50 | C38: 0.9367027112 | D38: 0.02961104754 | E38: 0.01766214974 | F38: 0.01602409152 | G38: 1
B39: 51 | C39: 0.9373725106 | D39: 0.027835124 | E39: 0.01647322168 | F39: 0.01831914371 | G39: 1
B40: 52 | C40: 0.9367787038 | D40: 0.02766038236 | E40: 0.01781055891 | F40: 0.01775035497 | G40: 1
B41: 53 | C41: 0.9363276461 | D41: 0.02623376015 | E41: 0.01693164544 | F41: 0.02050694826 | G41: 1
B42: 54 | C42: 0.9173612778 | D42: 0.02104645647 | E42: 0.02142684692 | F42: 0.0401654188 | G42: 1
B43: 55 | C43: 0.9092951222 | D43: 0.01765288989 | E43: 0.01794450406 | F43: 0.05510748383 | G43: 1
B44: 56 | C44: 0.8955992285 | D44: 0.02148299858 | E44: 0.01979420246 | F44: 0.06312357044 | G44: 1
B45: 57 | C45: 0.8859306665 | D45: 0.0233266119 | E45: 0.01847788834 | F45: 0.07226483332 | G45: 1
B46: 58 | C46: 0.889982146 | D46: 0.01726168195 | E46: 0.01237491937 | F46: 0.08038125271 | G46: 1
B47: 59 | C47: 0.6572916183 | D47: 0.02057055437 | E47: 0.01233166753 | F47: 0.3098061598 | G47: 1
B48: 60 | C48: 0.7153772583 | D48: 0.02948533394 | E48: 0.009274038978 | F48: 0.2458633688 | G48: 1
B49: 61 | C49: 0.76821326 | D49: 0.04088705639 | E49: 0.005575846656 | F49: 0.1853238369 | G49: 1
B50: 62 | C50: 0.7851924491 | D50: 0.02920636583 | E50: 0.01248038772 | F50: 0.1731207974 | G50: 1
B51: 63 | C51: 0.7971603726 | D51: 0.03613458581 | E51: 0.008515803911 | F51: 0.1581892377 | G51: 1
B52: 64 | C52: 0.6405877687 | D52: 0.02664721912 | E52: 0 | F52: 0.3327650122 | G52: 1
B79: Champ : France métropolitaine, population des ménages, personnes en emloi de 16-64 ans (âge au dernier jour de la semaine de référence) en n et n+1.
B80: Lecture : en moyenne annuelle, entre 2003 et 2014, 4 % des personnes en emploi de 28 ans sont au chômage un an après.
B81: Source : France Stratégie, d’après les enquêtes Emploi 2003-2014 (Insee), données pondérées du panel.

Sheet Evolution Emploi-Chômage
C2: Taux de transition de l'emploi vers le chômage selon l'ancienneté sur le marché du travail
D3: 2003-2008 | E3: 2008-2014 | G3: Variation 2003-2008/2008-2014
C4: Moins de 5 ans | D4: 0.05479672057 | E4: 0.0627404449 | G4: 0.1449671484
C5: Entre 5 et 9 ans | D5: 0.03682854875 | E5: 0.04355154569 | G5: 0.1825485165
C6: Entre 10 et 14 ans | D6: 0.02508946019 | E6: 0.03281561129 | G6: 0.3079440943
C7: Entre 15 et 19 ans | D7: 0.02246015146 | E7: 0.02515537984 | G7: 0.1200004544
C8: Entre 20 et 24 ans | D8: 0.02277173801 | E8: 0.02430039603 | G8: 0.06712961579
C9: Entre 25 et 29 ans | D9: 0.01691344383 | E9: 0.0235958415 | G9: 0.3950938519
C10: Entre 30 et 34 ans | D10: 0.01852326933 | E10: 0.02094928618 | G10: 0.13097131
C11: Entre 35 et 39 ans | D11: 0.01552536999 | E11: 0.02067504387 | G11: 0.3316941163
C12: 40 ans ou plus | D12: 0.01117775997 | E12: 0.01983517024 | G12: 0.7745210386
C13: *On parle ici d’« ancienneté sur le marché du travail » pour faire référence au temps écoulé depuis la sortie du système scolaire.
C14: Champ : France métropolitaine, population des ménages, personnes en emploi de 15 ans ou plus (âge au dernier jour de la semaine de référence) en n et n+1.
C15: Lecture : en moyenne annuelle, entre 2003 et 2008, 2,5 % des personnes en emploi ayant entre 10 et 14 ans d'ancienneté sur le marché du travail sont au chômage un an après.
C16: Source : France Stratégie, d’après les enquêtes Emploi 2003-2014 (Insee), données pondérées du panel.

Sheet Cumul-emploi-études
A1: UNIT | B1: Pourcentage | F1: Proportion de jeunes âgés de 15 à 29 ans en études et en emploi
A3: GEO/TIME | B3: 2006 | C3: 2015 | D3: 2012
A4: Union européenne (28 pays) | B4: 13.2 | C4: 14
A6: Danemark | B6: 42.6 | C6: 39.3 | D6: 8.5
A7: Pays-Bas | B7: 39 | C7: 38.9 | D7: 8
A8: Suède | B8: 18.3 | C8: 24.9
A9: Autriche | B9: 21.4 | C9: 24.1
A10: Allemagne | B10: 20.2 | C10: 22.4 | D10: 15
A11: Royaume-Uni | B11: 24.8 | C11: 19.8
A12: France | B12: 9.6 | C12: 14.9 | D12: 5
A13: Espagne | B13: 11.5 | C13: 7.9
A14: Italie | B14: 4.5 | C14: 3.4
L32: =15/22 -> 0.6818181818
F34: Champ : population âgés de 15 à 29 ans.
F35: Source : Eurostat

Sheet espscol
A1: 9.4 – Espérance de scolarisation pour un enfant de âgé 5 ans (2011-2012, en années)
B4: Plein temps | C4: Temps partiel
A5: Finlande | B5: 18.03079144 | C5: 1.648763966
A6: Pays-Bas | B6: 18.00892576 | C6: 0.7007562954
A7: Allemagne | B7: 17.76709359 | C7: 0.4038751512
A8: Italie | B8: 16.75449245 | C8: 0.07999740418
A9: Moyenne OCDE | B9: 16.56956972 | C9: 1.174132799
A10: France | B10: 16.44538979 | C10: m
A11: Belgique | B11: 16.32705601 | C11: 2.555909702
A12: Suède | B12: 16.21057369 | C12: 3.043687358
A13: Espagne | B13: 16.1968566 | C13: 1.438512543
A14: Japon | B14: 15.879816 | C14: 0.3756607294
A15: États-Unis | B15: 15.37507975 | C15: 1.86875413
A16: Royaume-Uni | B16: 15.37128806 | C16: 0.9854143288
A18: Source : OCDE, édition 2014 de Regards sur l'éducation.

Sheet scolarisation
A1: 9.1 – Évolution de la durée de scolarisation de 2 à 29 ans (en années)
B3: France métropolitaine | E3: France métropolitaine + DOM
B4: 1985-1986 | C4: 1990-1991 | D4: 1995-1996 | E4: 2000-2001 | F4: 2005-2006 | G4: 2011-2012 | H4: 2012-2013
A5: Ensemble 1 | B5: 16.9 | C5: 17.9 | D5: 18.8 | E5: 18.6 | F5: 18.4 | G5: 18.3 | H5: 18.2
A6: – Filles | B6: 17.1 | C6: 18.1 | D6: 19 | E6: 18.8 | F6: 18.6 | G6: 18.5 | H6: 18.5
A7: – Garçons | B7: 16.8 | C7: 17.8 | D7: 18.6 | E7: 18.5 | F7: 18.2 | G7: 18 | H7: 18
A8: Préélémentaire | B8: 3.3 | C8: 3.4 | D8: 3.4 | E8: 3.4 | F8: 3.3 | G8: 3.1 | H8: 3.1
A9: Élémentaire | B9: 5.5 | C9: 5.4 | D9: 5.2 | E9: 5.2 | F9: 5.2 | G9: 5.1 | H9: 5.1
A10: Secondaire | B10: 6.8 | C10: 7.5 | D10: 7.7 | E10: 7.6 | F10: 7.4 | G10: 7.3 | H10: 7.3
A11: Supérieur | B11: 1.3 | C11: 1.7 | D11: 2.4 | E11: 2.4 | F11: 2.5 | G11: 2.6 | H11: 2.7
A12: 1. Y compris l'enseignement dispensé à des élèves en grande difficulté dans des établissements ne dépendant pas du ministère de l'Éducation nationale, de l'Enseigment supérieur et de la Recherche, enseignement que l'on ne peut classer ni dans l'enseignement préélémentaire, ni dans l'enseignement élémentaire, ni dans l'enseignement secondaire.
A13: Sources : MENESR-DEPP-DGESIP-DGRI-SIES (population scolaire), Insee pour les effectifs de population.

Sheet CUMUL
B2: T1 | C2: T2 | D2: T3 | E2: T4 | G2: Année
A3: Apprentissage | B3: 7.9 | C3: 7.9 | D3: 7.6 | E3: 7.8 | G3: 7.8
A4: Stage, hors apprentissage | B4: 0.1 | C4: 0.5 | D4: 0.4 | E4: 0.2 | G4: 0.3
A5: Emploi occasionnel | B5: 1 | C5: 1.7 | D5: 4.2 | E5: 1.3 | G5: 2.2
A6: Emploi régulier | B6: 4.7 | C6: 4.7 | D6: 4.7 | E6: 4.7 | G6: 4.7

Sheet CAP BEP
C14: accés durable à l'emploi | D14: accès progressif à l'emploi | E14: sortie d'emploi | F14: maintien aux marges de l'emploi | G14: retour à la formation
A15: CAP BEP voie scolaire | C15: 41 | D15: 16 | E15: 10 | F15: 25 | G15: 8 | H15: =C15+D15+E15+F15+G15 -> 100
A16: CAP BEP par apprentissage | C16: 59 | D16: 14 | E16: 11 | F16: 13 | G16: 3

Sheet Traj
A3: Ils ont passé une ou plusieurs longues périodes en dehors du marché du travail | B3: 4
A4: Ils ont connu des périodes de recherche d'emploipesistantes ou récurrentes | B4: 6
A5: Ils ont décroché de l'emploi | B5: 9
A6: Ils se sont maintenus durablement en emploi à durée indéterminée | B6: 12
A7: Ils se sont stabilisés tardivement en EDI | B7: 18
A8: Ils se sont stabilisés en EDI de façon différée | B8: 17
A9: Ils se sont stabilisés rapidement en EDI | B9: 33

Sheet EcartGene
A2: non diplomés | B2: -9 | D2: doctorat | E2: 0.74
A3: CAP, BEP | B3: -13 | D3: M2, grandes écoles | E3: 0.57
A4: Bac général, pro, techno | B4: -6 | D4: BTS, DUT, L3, M1 | E4: 0.52
A5: BTS, DUT, L3, M1 | B5: -2 | D5: Bac général, pro, techno | E5: 0.36
A6: M2, grandes écoles | B6: 4 | D6: CAP, BEP | E6: 0.29
A7: doctorat | B7: 7 | D7: non diplomés | E7: 0.14
L32: Génération 2010
L34: 0.74
L36: 0.57
L38: 0.52
L40: 0.36
L42: 0.29
L44: 0.14

Sheet tps
B2: Temps passé * en emploi et au chômage au cours des sept premières années de vie active, par niveau de diplôme | Q2: Délai d'accès moyen au premier emploi
B5: emploi | C5: chomage | D5: autre
A6: Ensemble | B6: 80 | C6: 13 | D6: 7
A7: Diplômés du supérieur | B7: 90 | C7: 7 | D7: 3 | Q7: 12,5 mois
A8: Diplomés du secondaire | B8: 79 | C8: 13 | D8: 8
A9: Non-diplômés | B9: 60 | C9: 28 | D9: 12
Q10: 5,6 mois
Q12: 3,3 mois
Q14: 5,7 mois

Sheet trajdiplome
A2: Trajectoires d'entrée dans la vie active selon le niveau de diplôme
B3: Accès durable à l'emploi | D3: Accès progressif à l'emploi | F3: Sortie d'emploi | G3: Maintien aux marges de l'emploi | H3: Retour à la formation
A4: en % | B4: Immédiat | C4: rapide | D4: après chômage | E4: après inactivité
A5: Aucun diplôme | B5: 17 | C5: 7 | D5: 9 | E5: 6 | F5: 8 | G5: 40 | H5: 13
A6: CAP-BEP | B6: 36 | C6: 12 | D6: 12 | E6: 3 | F6: 11 | G6: 20 | H6: 6
A7: CAP-BEP Tertiaire | B7: 32 | C7: 11 | D7: 14 | E7: 3 | F7: 11 | G7: 21 | H7: 8
A8: CAP-BEP Industriel | B8: 40 | C8: 13 | D8: 10 | E8: 3 | F8: 10 | G8: 19 | H8: 5
A9: Baccalauréat | B9: 44 | C9: 13 | D9: 7 | E9: 4 | F9: 8 | G9: 9 | H9: 15
A10: Bac professionnel tertiaire | B10: 46 | C10: 15 | D10: 8 | E10: 4 | F10: 9 | G10: 11 | H10: 7
A11: Bac professionnel industriel | B11: 55 | C11: 15 | D11: 9 | E11: 2 | F11: 7 | G11: 7 | H11: 5
A12: Bac technologique tertiaire | B12: 40 | C12: 12 | D12: 7 | E12: 4 | F12: 9 | G12: 10 | H12: 18
A13: Bac technologique industriel | B13: 42 | C13: 13 | D13: 8 | E13: 6 | F13: 7 | G13: 11 | H13: 13
A14: Bac général | B14: 38 | C14: 11 | D14: 5 | E14: 6 | F14: 6 | G14: 8 | H14: 26
A15: Bac+2 hors santé social | B15: 51 | C15: 17 | D15: 8 | E15: 3 | F15: 8 | G15: 6 | H15: 7
A16: Bac+2/3 santé social | B16: 86 | C16: 9 | D16: 1 | E16: 1 | F16: 3 | G16: <1 | H16: <1
A17: Bac+3/4 hors santé social (L,M1) | B17: 51 | C17: 16 | D17: 6 | E17: 3 | F17: 7 | G17: 5 | H17: 12
A18: Licence professionnelle | B18: 54 | C18: 22 | D18: 7 | E18: 2 | F18: 6 | G18: 3 | H18: 6
A19: Autre bac+3/4 LSH, gestion, droit | B19: 45 | C19: 14 | D19: 6 | E19: 4 | F19: 8 | G19: 8 | H19: 15
A20: Autre bac+3/4 Math, sc. Et tech, santé, STAPS | B20: 58 | C20: 11 | D20: 5 | E20: 5 | F20: 5 | G20: 4 | H20: 12
A21: Bac+5 (M2) | B21: 57 | C21: 22 | D21: 6 | E21: 2 | F21: 6 | G21: 4 | H21: 3
A22: Bac+5 hors écoles de commerce ou ingénieurs | B22: 55 | C22: 19 | D22: 7 | E22: 3 | F22: 7 | G22: 5 | H22: 4
A23: Ecole de commerce | B23: 55 | C23: 26 | D23: 6 | E23: 3 | F23: 5 | G23: 2 | H23: 3
A24: Ecole d'ingénieurs | B24: 64 | C24: 27 | D24: 3 | E24: 1 | F24: 3 | G24: 1 | H24: 1
A25: Docteurs (D) | B25: 78 | C25: 8 | D25: 4 | E25: 1 | F25: 4 | G25: 4 | H25: 1
A26: Doctorat santé | B26: 90 | C26: 2 | D26: 1 | E26: 1 | F26: 3 | G26: 2 | H26: 1
A27: Doctorat hors sante | B27: 68 | C27: 13 | D27: 7 | E27: 1 | F27: 6 | G27: 4 | H27: 1
A28: Ensemble | B28: 44 | C28: 13 | D28: 7 | E28: 4 | F28: 8 | G28: 14 | H28: 10
F30: Champ : ensemble de la génération (708 000 jeunes)
